Cogmind - Beta 12 X6 @@@ ROGUE MODE // 2023.01.22 @ 10:25:36 Player: Sardaukar Result: Destroyed by L-31 Rogue with Katana Performance ------------- Evolutions (2) 1000 Regions Visited (5) 1000 Robots Destroyed (48) 240 Value Destroyed (1571) 1571 Prototype IDs (3) 60 Alien Tech Used (0) 0 Bonus (403) 403 TOTAL SCORE: 4274 Bonus ------- High Alert Combat Kills 103 Aligned with FarCom 300 Cogmind --------- Core Integrity 0/550 Matter 210/300 Energy 100/100 System Corruption 0% Temperature Cool (0) Movement Core (700) Ox13 Location -8/Materials Parts ------- > --- POWER (1) -------- (None) > --- PROPULSION (4) --- (None) > --- UTILITY (4) ------ High-capacity Storage Unit Improved Signal Interpreter > --- WEAPON (2) ------- (None) > --- INVENTORY (20) --- Light Ion Engine Light Treads Large Matter Pod (150) Precision Beam Rifle Autogun High-powered Shotgun High-powered Shotgun Great Maul Great Maul Peak State ------------ > --- POWER ------------ Reinforced Ion Engine > --- PROPULSION ------- Aluminum Leg Carbon-fiber Leg Potential Leg Potential Leg > --- UTILITY ---------- Heat Sink Advanced Heat Sink High-capacity Storage Unit Weapon Shielding > --- WEAPON ----------- EM Shotgun Heavy Assault Rifle > --- INVENTORY -------- Ion Engine Light Ion Engine Light Nuclear Core Light Treads High-capacity Battery Large Matter Pod Grenade Launcher Rocket Launcher [Rating: 39] Favorites ----------- Power Ion Engine Engine Ion Engine Power Core Light Nuclear Core Propulsion Aluminum Leg Treads Light Treads Leg Aluminum Leg Utility Large Storage Unit Device Heat Sink Storage Large Storage Unit Processor Improved Signal Interpreter Protection Light Armor Plating Weapon EM Pulse Gun Energy Gun EM Pulse Gun Energy Cannon Ion Cannon Ballistic Gun Heavy Assault Rifle Launcher Rocket Launcher Build | -11 -10 -10 -10 -9 -8 ------- Run | Jun Mat Min Exi Min Mat Slots Evolved 4 | . . . . . 4 Power . | . . . . . . Propulsion 2 | . . . . . 2 Utility 2 | . . . . . 2 Weapon . | . . . . . . Parts Attached 57 | 6 4 8 6 3 30 Power 6 | 1 . 1 . 1 3 Engine 4 | 1 . 1 . 1 1 Core 2 | . . . . . 2 Reactor . | . . . . . . Propulsion 15 | 2 . 4 2 . 7 Treads 5 | . . 2 . . 3 Leg 10 | 2 . 2 2 . 4 Wheel . | . . . . . . Hover . | . . . . . . Flight . | . . . . . . Utility 15 | 1 4 1 1 . 8 Device 4 | . 1 1 . . 2 Storage 7 | 1 3 . 1 . 2 Processor 2 | . . . . . 2 Hackware . | . . . . . . Protection 2 | . . . . . 2 Artifact . | . . . . . . Weapon 21 | 2 . 2 3 2 12 Energy Gun 9 | 2 . 1 1 2 3 Energy Cannon 2 | . . . 1 . 1 Ballistic Gun 4 | . . . 1 . 3 Ballistic Cannon . | . . . . . . Launcher 6 | . . 1 . . 5 Special Weapon . | . . . . . . Impact Weapon . | . . . . . . Slashing Weapon . | . . . . . . Piercing Weapon . | . . . . . . Special Melee Weapon . | . . . . . . Unidentified Prototypes 3 | . . . 2 . 1 Parts Lost 28 | . . 1 . . 27 Power 4 | . . . . . 4 Propulsion 8 | . . . . . 8 Utility 6 | . . 1 . . 5 Weapon 10 | . . . . . 10 Highest Loss Streak 11 | . . 1 . . 11 To Critical Strikes . | . . . . . . Average Slot Usage (%) 88 | . 89 98 100 100 68 Engine 10 | . 14 14 14 14 2 Treads 4 | . . 2 15 . 3 Leg 21 | . 28 25 12 28 18 Device 9 | . 4 12 14 14 4 Storage 14 | . 13 14 14 14 16 Processor 1 | . . . . . 4 Energy Gun 15 | . 28 24 13 18 4 Ballistic Gun 3 | . . . 4 10 4 Launcher 3 | . . 3 9 . 3 Naked Turns . | . . . . . . Heaviest Build 59 | 14 30 32 52 57 59 Greatest Support 85 | 20 20 40 60 60 85 Greatest Overweight (x) 16 | . 1 1 1 . 16 Average Overweight (x) . | . . . . . . Largest Inventory Capacity 25 | 8 25 15 20 20 20 Average Capacity 16 | 7 11 15 15 20 20 Most Carried 13 | 4 6 13 13 10 9 Average Carried 7 | 1 4 7 11 8 5 Final Capacity 20 | 8 15 15 20 20 20 Final Carried 13 | 4 4 13 9 9 9 Class Distribution -------------------- 61% | Mutant 38% | Scavenger-Mutant Dominant Class ---------------- Mutant | -10/Materials Mutant | -10/Mines Mutant | -10/Exiles Scavenger-Mutant | -9/Mines Mutant | -8/Materials Resources | -11 -10 -10 -10 -9 -8 ----------- Run | Jun Mat Min Exi Min Mat Matter Collected 1152 | 204 . 175 . 117 656 Remotely . | . . . . . . Salvage Created 1325 | . . 149 . 214 962 Parts 74 | . . 20 . 7 47 Haulers Intercepted 2 | . . . . . 2 Recyclers Shooed 2 | . . . . . 2 Parts Field Recycled . | . . . . . . Retrieved Matter . | . . . . . . Parts Self-Destructed . | . . . . . . Prevented . | . . . . . . Kills | -11 -10 -10 -10 -9 -8 ------- Run | Jun Mat Min Exi Min Mat Combat Hostiles Destroyed 34 | . . 5 . 5 24 Guns 20 | . . 4 . 5 11 Cannons 1 | . . . . . 1 AOE 13 | . . 1 . . 12 Classes Destroyed 14 | . . 3 . 2 9 Worker 3 | . . . . . 3 Builder 1 | . . . . . 1 Tunneler 3 | . . 1 . . 2 Hauler 2 | . . . . . 2 Recycler 2 | . . . . . 2 Mechanic 1 | . . . . . 1 Watcher 2 | . . . . . 2 Swarmer 3 | . . 3 . . . Grunt 21 | . . 2 . 3 16 Brawler 2 | . . . . 1 1 Duelist 2 | . . . . 1 1 Sentry 4 | . . . . . 4 Hunter 1 | . . . . . 1 Heavy 1 | . . . . . 1 Best Kill Streak 11 | . . 2 . 3 11 Combat Bots Only 8 | . . 2 . 3 8 Max Kills in Single Turn 3 | . . 2 . 2 3 Gunslinging 1 | . . . . 1 . Exploded 2 | . . 1 . . 2 Melee . | . . . . . . Uniques/NPCs Destroyed . | . . . . . . Combat | -11 -10 -10 -10 -9 -8 -------- Run | Jun Mat Min Exi Min Mat Damage Taken 3824 | . 41 171 . 515 3097 Core 691 | . . 16 . 96 579 Absorbed by Shields . | . . . . . . Redirected to Shielding 67 | . . . . . 67 Core Remaining (%) 77 | 100 . . . 55 . Volleys Fired 111 | . 3 7 . 16 85 Largest 2 | . 2 2 . 2 2 Hottest 125 | . 90 105 . 121 125 Shots Fired 182 | . 6 13 . 29 134 Gun 117 | . 6 12 . 29 70 Cannon 23 | . . . . . 23 Launcher 42 | . . 1 . . 41 Special . | . . . . . . Kinetic 59 | . . . . 9 50 Thermal 68 | . 3 6 . 20 39 Explosive 42 | . . 1 . . 41 Electromagnetic 13 | . 3 6 . . 4 Robot Hit Streak 12 | . 1 8 . 12 10 Robot Miss Streak 7 | . 5 6 . 3 7 Penetration Max . | . . . . . . Secondary Targets 2 | . . . . 2 . Max Gunslinging Chain 1 | . . . . 1 . Shots Hit Robots 131 | . 1 8 . 22 100 Core Hits 93 | . . 8 . 9 76 Critical Kills . | . . . . . . Critical Parts Destroyed . | . . . . . . Critical Strikes 3 | . . 1 . 2 . Burn 3 | . . 1 . 2 . Melee Attacks . | . . . . . . Impact . | . . . . . . Slashing . | . . . . . . Piercing . | . . . . . . Sneak Attacks . | . . . . . . Combat Hostiles . | . . . . . . Follow-up Attacks . | . . . . . . Damage Inflicted 4800 | . 22 193 . 328 4257 Guns 1423 | . 22 101 . 328 972 Cannons 374 | . . . . . 374 Explosions 2824 | . . 82 . . 2742 Melee . | . . . . . . Ramming 179 | . . 10 . . 169 Kinetic 795 | . . . . 74 721 Thermal 863 | . . 37 . 254 572 Explosive 2824 | . . 82 . . 2742 Electromagnetic 139 | . 22 64 . . 53 Impact . | . . . . . . Slashing . | . . . . . . Piercing . | . . . . . . Highest Corruption . | . . . . . . Average Corruption . | . . . . . . Corruption Purged . | . . . . . . Corruption Blocked . | . . . . . . Overload Shots . | . . . . . . Overflow Damage 157 | . . 2 . . 155 Projectiles 1 | . . . . . 1 Explosions 156 | . . 2 . . 154 Melee . | . . . . . . Knockbacks . | . . . . . . Impact . | . . . . . . Kinetic . | . . . . . . Secondary . | . . . . . . Self-Inflicted Damage 419 | . . 31 . . 388 Shots 12 | . . 1 . . 11 Rammed . | . . . . . . Targets Rammed 25 | . . 2 . . 23 Kicked 25 | . . 2 . . 23 Crushed . | . . . . . . Highest Temperature 190 | . 30 90 . 190 171 Average Temperature 47 | . 18 40 . 72 43 Received Heat Transfer 975 | . . 54 . 156 765 Siege Activations . | . . . . . . Robots Corrupted . | . . . . . . Combat Hostiles . | . . . . . . Parts Fried . | . . . . . . Impact Corruptions . | . . . . . . Robots Melted . | . . . . . . Combat Hostiles . | . . . . . . Parts Melted 1 | . . . . . 1 Heat Transferred 2035 | . . 185 . 777 1073 Parts Sabotaged . | . . . . . . Parts Stolen . | . . . . . . Parts Stripped . | . . . . . . Power Chain Reactions . | . . . . . . Missiles Intercepted . | . . . . . . Alert | -11 -10 -10 -10 -9 -8 ------- Run | Jun Mat Min Exi Min Mat Peak Influence 609 | . 36 158 . 135 609 Initial 52 | . . 13 . . 52 Average 147 | . 28 43 . 79 309 Maximum Alert Level 2 | . . . . . 2 Low Security (%) 73 | 100 100 100 . 100 30 Level 1 15 | . . . . . 40 Level 2 10 | . . . . . 28 Level 3 . | . . . . . . Level 4 . | . . . . . . Level 5 . | . . . . . . High Security . | . . . . . . Max Security . | . . . . . . Squads Dispatched 8 | . 1 . . . 7 Investigation . | . . . . . . Extermination . | . . . . . . Reinforcement 5 | . 1 . . . 4 Assault . | . . . . . . Garrison 3 | . . . . . 3 Intercept . | . . . . . . Searches Triggered . | . . . . . . Construction Impeded . | . . . . . . Haulers Reinforced . | . . . . . . Active Scanning Responses . | . . . . . . Cargo Convoy Interrupts . | . . . . . . Stealth | -11 -10 -10 -10 -9 -8 --------- Run | Jun Mat Min Exi Min Mat Distress Signals 4 | . 1 . . . 3 Communications Jammed . | . . . . . . Distress Signals . | . . . . . . Times Spotted 66 | . 8 9 . 5 44 Peak Tracking Total 9 | . 6 3 . 3 9 Tactical Retreats 4 | . . 2 . . 2 Traps | -11 -10 -10 -10 -9 -8 ------- Run | Jun Mat Min Exi Min Mat Traps Triggered . | . . . . . . Indirectly . | . . . . . . Trap Hack Attempts . | . . . . . . Triggered . | . . . . . . Disarmed . | . . . . . . Reprogrammed . | . . . . . . Reused . | . . . . . . Traps Extracted . | . . . . . . Installed . | . . . . . . Triggered . | . . . . . . Machines | -11 -10 -10 -10 -9 -8 ---------- Run | Jun Mat Min Exi Min Mat Machines Disabled 3 | . . . . . 3 Max in Single Turn 2 | . . . . . 2 Machines Repaired . | . . . . . . Machines Sabotaged . | . . . . . . Overloaded Fab Kills . | . . . . . . Hacking | -11 -10 -10 -10 -9 -8 --------- Run | Jun Mat Min Exi Min Mat Machines Accessed 6 | . 2 . 1 . 3 Terminals 4 | . 1 . . . 3 Fabricators . | . . . . . . Repair Stations . | . . . . . . Recycling Units 1 | . 1 . . . . Scanalyzers . | . . . . . . Garrison Access . | . . . . . . Total Hacks 16 | . 6 . 1 . 9 Successful 8 | . 4 . 1 . 3 Failed 8 | . 2 . . . 6 Catastrophic 1 | . . . . . 1 Database Lockouts . | . . . . . . Manual 9 | . 3 . 1 . 5 Terminals 13 | . 4 . . . 9 Fabricators . | . . . . . . Repair Stations . | . . . . . . Recycling Units 2 | . 2 . . . . Scanalyzers . | . . . . . . Garrison Access . | . . . . . . Terminal Hacks 6 | . 2 . 1 . 3 Record 1 | . . . 1 . . Terminal Index 2 | . 1 . . . 1 Alert Level 1 | . . . . . 1 Zone Layout 2 | . 1 . . . 1 Fabricator Hacks . | . . . . . . Repair Station Hacks . | . . . . . . Recycling Unit Hacks 2 | . 2 . . . . Report Inventory 1 | . 1 . . . . Retrieve Components 1 | . 1 . . . . Scanalyzer . | . . . . . . Garrison Access Hacks . | . . . . . . Unauthorized Hacks . | . . . . . . Terminals . | . . . . . . Fabricators . | . . . . . . Repair Stations . | . . . . . . Recycling Units . | . . . . . . Scanalyzers . | . . . . . . Garrison Access . | . . . . . . Data Cores Recovered . | . . . . . . Used . | . . . . . . Hacking Detections 4 | . 2 . . . 2 Full Trace Events . | . . . . . . Feedback Events . | . . . . . . Feedback Blocked . | . . . . . . Robot Schematics Acquired . | . . . . . . Robots Built . | . . . . . . Authchips . | . . . . . . Time . | . . . . . . Total Robot Build Rating . | . . . . . . Part Schematics Acquired . | . . . . . . Parts Built . | . . . . . . Authchips . | . . . . . . Time . | . . . . . . Total Part Build Rating . | . . . . . . Parts Repaired . | . . . . . . Time . | . . . . . . Parts Recycled . | . . . . . . Recycled Matter . | . . . . . . Retrieved Matter . | . . . . . . Retrieved Components 3 | . 3 . . . . Parts Scanalyzed . | . . . . . . Part Schematics Acquired . | . . . . . . Parts Damaged . | . . . . . . Bothacking | -11 -10 -10 -10 -9 -8 ------------ Run | Jun Mat Min Exi Min Mat Used RIF Installer . | . . . . . . Robots Hacked . | . . . . . . Non-combat . | . . . . . . Combat . | . . . . . . Robot Hacks Applied . | . . . . . . Relay Couplers Released . | . . . . . . Fabnet Peak Effective % . | . . . . . . Robots Rewired . | . . . . . . Allies Hacked . | . . . . . . Hacks Repelled . | . . . . . . Allies | -11 -10 -10 -10 -9 -8 -------- Run | Jun Mat Min Exi Min Mat Total Allies . | . . . . . . Largest Group . | . . . . . . Highest-Rated Group . | . . . . . . Highest-Rated Ally . | . . . . . . Total Orders . | . . . . . . Ally Attacks . | . . . . . . Total Damage . | . . . . . . Kills . | . . . . . . Allies Corrupted . | . . . . . . Allies Melted . | . . . . . . Intel | -11 -10 -10 -10 -9 -8 ------- Run | Jun Mat Min Exi Min Mat Robot Analysis Total . | . . . . . . Derelict Logs Recovered 2 | . . 2 . . . Drone Launches . | . . . . . . Drone Recoveries . | . . . . . . Exploration | -11 -10 -10 -10 -9 -8 ------------- Run | Jun Mat Min Exi Min Mat Turns Passed 2386 | 68 170 731 372 278 767 Spaces Moved 1230 | 50 86 368 298 170 258 Core 8 | 6 . . . . 2 Treads 170 | . . 40 127 . 3 Legs 1052 | 44 86 328 171 170 253 Wheels . | . . . . . . Hover . | . . . . . . Flight . | . . . . . . Fastest Speed 50 | 50 120 160 90 90 90 Average Speed 144 | 111 155 186 120 90 150 Slowest Speed 850 | 120 190 190 170 90 850 Overloaded Moves . | . . . . . . Propulsion Burnouts . | . . . . . . Robots Hopped . | . . . . . . Cave-ins Triggered . | . . . . . . Exploration Rate (%) 34 | 3 22 64 60 34 25 Regions Visited 5 Branch Regions 3 Pre-discovered Areas 3 | . . 2 1 . . Known Exits Taken . | . . . . . . Unknown Exits Taken 5 | 1 1 1 1 1 . Scrap Searched 1 | . . . . 1 . Spaces Dug . | . . . . . . Terrain Destroyed 191 | . . 12 . . 179 Melee . | . . . . . . Projectile 1 | . . . . . 1 AOE 190 | . . 12 . . 178 Terrain Rammed . | . . . . . . Walls Destroyed . | . . . . . . Machines Disabled . | . . . . . . Actions | -11 -10 -10 -10 -9 -8 --------- Run | Jun Mat Min Exi Min Mat Total 1646 | 59 116 395 314 266 496 Wait 180 | . 21 2 . 73 84 Move 1225 | 49 85 367 297 169 258 Hop . | . . . . . . Pick Up 26 | 4 1 7 2 3 9 Fast Attach 31 | 6 2 1 2 1 19 Attach 16 | . 1 2 2 2 9 Detach 2 | . . . . . 2 Swap 10 | . 1 5 2 . 2 Drop 20 | . 2 2 9 2 5 Fire 111 | . 3 7 . 16 85 Melee . | . . . . . . Ram . | . . . . . . Kick 25 | . . 2 . . 23 Crush . | . . . . . . Escape Stasis . | . . . . . . Rewire . | . . . . . . Trap . | . . . . . . Miscellaneous . | . . . . . . Route ------- -11/Junkyard -10/Materials (discovered 2 exits: [*Min x2]) -10/Mines (discovered 3 exits: [*Mat x2] / *Exi) -10/Exiles -9/Mines -8/Materials (discovered 1 exit: [*Sto]) History --------- Turn | Location | Event 14 | -11/Junkyard | Discovered new exit (range 16) 69 | -11/Junkyard | Entered Materials 69 | -10/Materials | Discovered new exit (range 8) 216 | -10/Materials | Discovered new exit (range 13) 239 | -10/Materials | Entered Mines 306 | -10/Mines | Build established: Mutant 427 | -10/Mines | Discovered new exit (range 10) 801 | -10/Mines | Received a Rocket Launcher from a helpful Derelict 850 | -10/Mines | Discovered new exit (range 7) 865 | -10/Mines | Joined a pair of Derelicts in attacking an 0b10 outpost 955 | -10/Mines | Learned location of Storage (-8) 962 | -10/Mines | Deemed a non-threat by the Exiles lab entrance 963 | -10/Mines | Discovered new exit (range 5) 970 | -10/Mines | Entered Exiles 1010 | -10/Exiles | Met 8R-AWN 1038 | -10/Exiles | Met EX-HEX 1082 | -10/Exiles | Met EX-BIN 1127 | -10/Exiles | Aligned with FarCom system 1129 | -10/Exiles | Given EX-Vault access code 1169 | -10/Exiles | Opened EX-Vault 1175 | -10/Exiles | Found Prototype Leg 1175 | -10/Exiles | Identified Potential Leg 1178 | -10/Exiles | Found Potential Leg 1197 | -10/Exiles | Warned to stay clear of 0b10 Research branches 1218 | -10/Exiles | Found Prototype Energy Cannon 1219 | -10/Exiles | Identified Latent Energy Streamer 1265 | -10/Exiles | Met EX-DEC 1270 | -10/Exiles | Learned location of Zion (-6) 1335 | -10/Exiles | Discovered new exit (range 10) 1342 | -10/Exiles | Left Exiles lab with Potential Leg 1342 | -10/Exiles | Entered Mines 1500 | -9/Mines | Build established: Scavenger-Mutant 1615 | -9/Mines | Discovered new exit (range 7) 1620 | -9/Mines | Entered Materials 1620 | -8/Materials | Evolved 4 slots: Propulsion x2, Utility x2 1862 | -8/Materials | Garrison activated, responded to threat 1911 | -8/Materials | Destroyed 8 combat bots 1925 | -8/Materials | Core integrity fell below 50% 1934 | -8/Materials | Lost 11 parts (2p2n3u4w) 1993 | -8/Materials | Discovered new exit (range 9) 2010 | -8/Materials | Lost 4 parts (1p2n1w) 2121 | -8/Materials | Build established: Mutant 2272 | -8/Materials | Lost 3 parts (1n1u1w) 2332 | -8/Materials | Lost 4 parts (1p1n1u1w) 2377 | -8/Materials | Core integrity fell below 20% 2387 | -8/Materials | Destroyed by L-31 Rogue with Katana Last Messages --------------- 02368_ U-05 Engineer lays Concrete. 02370_ R-06 Scavenger collects Wheel. 02371_ The unstable cave ceiling collapses. 02371_ Aluminum Leg destroyed. 02371_ Hvy. EM Shotgun destroyed. 02371_ U-05 Engineer builds a Wall. 02371_ U-05 Engineer lays Concrete. 02371_ K-01 Serf collects debris. 02372_ U-05 Engineer lays Concrete. 02373_ Missile Launcher destroyed. 02374_ U-05 Engineer lays Concrete. 02374_ K-01 Serf collects debris. 02375_ U-05 Engineer lays Concrete. 02378_ K-01 Serf collects debris. 02378_ U-05 Engineer builds a Wall. 02381_ K-01 Serf collects debris. 02382_ U-05 Engineer builds a Wall. 02382_ Aluminum Leg destroyed. 02384_ U-05 Engineer lays Concrete. 02386_ U-05 Engineer builds a Wall. Map ----- +----------------------------------------------------+ | #?????????????????????????????????????????????? | | #?????????????????????????????????????????????? | | #?????????????????????????????????????????????? | | #?????????????????????????????????????????????? | | #?????????????????????????????????????????????? | | ########???????????????????????????????????????? | | # ########????# "" #????????????????????? | | # # #????# """ ##?###????????????????? | | " """ # #????# S" #### ###??????????????? | | # """ # #????# # #??????????????? | | # """ [# #????# # """ +??????????????? | | # # ###### # """ #??????????????? | | ######## # ####+### """ #??????????????? | | ##?????# + w + """ #??????????????? | | ##????# # # """ #??????????????? | | ##???# # "" # #??????????????? | | #???# # "T % # """ #??????????????? | | #???# # "" # """ +??????????????? | | % #???# + + """ #??????????????? | | ## #??# # # """ #??????????????? | | ## #??##+##### # """ #?? ???????????? | | ## #??# #?####"T"## # # ??????????? | | # #??# #?# """ # ##+##### ??????????? | | % #########+### [+[ ## ^ ?????????? | | ## ## [ # ## ^^ ????????? | | ## ## #### # @ ## "?????????? | | # ########## lg "?????????? | | # + = ""????????? | | / = #######= [u! g ????????? | | # # ##u####+## k ???????? | | ! # ## ! # g ???????? | | #### # # g g ???????? | | ???##"#####+####### %% == ???????? | | ????# ###?# #????# " % g ???????? | | ???? #?# #????# "" ### ???????? | | ??? ### ######## #" # #?# ????????? | | ??+ < #" ##+####g ?????????? | | ??# ##???????#####""" #?? ???? ? ?????????? | | ??# ?????????????# #??? ???g?????????????? | | ??###+##?????????????# #???? ????????????????? | | ?????????????????????# #?????????????????????? | | ?????????????????????# #?????????????????????? | | ?????????????????????#######?????????????????????? | | ?????????????????????????????????????????????????? | | ?????????????????????????????????????????????????? | | ?????????????????????????????????????????????????? | | ?????????????????????????????????????????????????? | | ?????????????????????????????????????????????????? | | ?????????????????????????????????????????????????? | | ?????????????????????????????????????????????????? | +----------------------------------------------------+ Best States ------------- Heat Dissipation 60 Energy Generation 14 Energy Capacity 410 Matter Stores 450 Matter Capacity 450 Sight Range 16 Terrain Scan Range 14 Terrain Scan Density 10 Armor Coverage 150 Weapon Shielding 33 Evasion (%) 57 Recoil Reduction 2 Item Schematics ----------------- None Robot Schematics ------------------ None Fabricated ------------ Nothing Alien Tech Used ----------------- None Achievements -------------- None Challenges ------------ None Game ------ Seed AlloyBehemothDoublenader Manual? 0 Play Time 00:27:32 Cumulative 281.0 hours Start 2023.01.18 @ 13:10:20 End 2023.01.22 @ 10:25:36 Sessions 7 Manual Loads 0 Difficulty Rogue Special Mode None Game No. 85 Rogue 7 Adventurer 63 Explorer 15 Win Type - Total 7 Types 6/0/1/0/0/0/0/0/0 Lore% 67 Gallery% 76 Achievement% 64 Wizard Run 0 Options --------- ASCII 0 Keyboard 0 Movement Mouse Keybinds 0 Fullscreen 2 Font 20/Terminus Map View 66x50 Tactical HUD 1 Map Filters NONE Filters NONE Steam 1 RUN: 9a0d4222-22ab-47f9-8190-a41a359fb5b8